[Event "Titled Tuesday Blitz April 4 Late 2023"]
[White "Popov, Mikhail"]
[Black "Perez Rodriguez, Jennifer"]
[WhiteFideId "4146182"]
[BlackFideId "3507831"]
[WhiteElo "2244"]
[BlackElo "2116"]
[Result "1-0"]
[Round "03"]
[TimeControl "180+2"]
[Date "2023.04.04"]
[WhiteClock "0:00:21"]
[BlackClock "0:00:14"]

1. d4 {[%clk 0:03:00]}  d5 {[%clk 0:02:58]} 2. Nf3 {[%clk 0:02:58]}  Nf6 {[%clk 0:02:58]} 3. c4 {[%clk 0:02:59]}  c6 {[%clk 0:02:57]} 4. Nc3 {[%clk 0:02:59]}  e6 {[%clk 0:02:58]} 5. g3 {[%clk 0:02:56]}  Nbd7 {[%clk 0:02:54]} 6. Bg2 {[%clk 0:02:56]}  g6 {[%clk 0:02:55]} 7. O-O {[%clk 0:02:44]}  Bg7 {[%clk 0:02:55]} 8. Qc2 {[%clk 0:02:28]}  O-O {[%clk 0:02:55]} 9. b4 {[%clk 0:02:27]}  dxc4 {[%clk 0:02:41]} 10. b5 {[%clk 0:02:22]}  cxb5 {[%clk 0:02:34]} 11. Nxb5 {[%clk 0:02:23]}  a6 {[%clk 0:02:35]} 12. Nd6 {[%clk 0:02:18]}  Qc7 {[%clk 0:02:23]} 13. Nxc4 {[%clk 0:02:10]}  b5 {[%clk 0:02:20]} 14. Ne3 {[%clk 0:02:10]}  Qxc2 {[%clk 0:02:19]} 15. Nxc2 {[%clk 0:02:11]}  Bb7 {[%clk 0:02:20]} 16. Ba3 {[%clk 0:01:49]}  Rfc8 {[%clk 0:02:19]} 17. Rac1 {[%clk 0:01:49]}  Rc3 {[%clk 0:02:19]} 18. Bb4 {[%clk 0:01:36]}  Rc4 {[%clk 0:02:04]} 19. Nd2 {[%clk 0:01:32]}  Bxg2 {[%clk 0:02:02]} 20. Kxg2 {[%clk 0:01:33]}  Rc6 {[%clk 0:01:59]} 21. Ne3 {[%clk 0:01:29]}  Rac8 {[%clk 0:01:59]} 22. Nb3 {[%clk 0:01:26]}  Rxc1 {[%clk 0:01:53]} 23. Rxc1 {[%clk 0:01:27]}  Rxc1 {[%clk 0:01:52]} 24. Nxc1 {[%clk 0:01:28]}  Nb6 {[%clk 0:01:39]} 25. Nb3 {[%clk 0:01:19]}  Nfd5 {[%clk 0:01:29]} 26. Nxd5 {[%clk 0:01:16]}  Nxd5 {[%clk 0:01:29]} 27. Bd2 {[%clk 0:01:15]}  b4 {[%clk 0:01:19]} 28. e3 {[%clk 0:01:05]}  Bf8 {[%clk 0:01:10]} 29. Kf3 {[%clk 0:01:05]}  Bd6 {[%clk 0:00:56]} 30. Ke2 {[%clk 0:01:04]}  Kf8 {[%clk 0:00:45]} 31. Kd3 {[%clk 0:01:05]}  Nb6 {[%clk 0:00:46]} 32. Na5 {[%clk 0:01:01]}  Ke7 {[%clk 0:00:37]} 33. Nc6+ {[%clk 0:00:50]}  Kd7 {[%clk 0:00:37]} 34. Nxb4 {[%clk 0:00:50]}  a5 {[%clk 0:00:37]} 35. Nc2 {[%clk 0:00:50]}  a4 {[%clk 0:00:35]} 36. e4 {[%clk 0:00:48]}  Kc6 {[%clk 0:00:35]} 37. Bb4 {[%clk 0:00:46]}  Bc7 {[%clk 0:00:34]} 38. Na3 {[%clk 0:00:44]}  f5 {[%clk 0:00:33]} 39. f3 {[%clk 0:00:44]}  g5 {[%clk 0:00:32]} 40. d5+ {[%clk 0:00:24]}  exd5 {[%clk 0:00:26]} 41. exf5 {[%clk 0:00:24]}  h5 {[%clk 0:00:15]} 42. Bc3 {[%clk 0:00:23]}  Kd6 {[%clk 0:00:13]} 43. Nb5+ {[%clk 0:00:21]}  Kd7 {[%clk 0:00:14]} 44. Nxc7 {[%clk 0:00:21]}  Kxc7 {[%clk 0:00:14]} 45. Ba5 {[%clk 0:00:21]} 1-0


[Site "https://www.chess.com"]

[Event "Titled Tuesday Blitz April 4 Late 2023"]
[White "Gubajdullin, Alexei"]
[Black "Ai, Evan"]
[WhiteFideId "4141202"]
[BlackFideId "2094770"]
[WhiteElo "2279"]
[BlackElo "1963"]
[Result "1-0"]
[Round "03"]
[TimeControl "180+2"]
[Date "2023.04.04"]
[WhiteClock "0:01:48"]
[BlackClock "0:00:26"]

1. d4 {[%clk 0:03:00]}  Nf6 {[%clk 0:02:56]} 2. Nf3 {[%clk 0:03:01]}  e6 {[%clk 0:02:54]} 3. Bf4 {[%clk 0:03:01]}  d5 {[%clk 0:02:54]} 4. e3 {[%clk 0:03:02]}  c5 {[%clk 0:02:54]} 5. Nbd2 {[%clk 0:03:01]}  Nc6 {[%clk 0:02:54]} 6. c3 {[%clk 0:03:01]}  Bd6 {[%clk 0:02:54]} 7. Bg3 {[%clk 0:03:01]}  Ne7 {[%clk 0:02:48]} 8. Bd3 {[%clk 0:03:01]}  Qc7 {[%clk 0:02:45]} 9. Ne5 {[%clk 0:02:55]}  O-O {[%clk 0:02:43]} 10. f4 {[%clk 0:02:54]}  Nf5 {[%clk 0:02:43]} 11. Bf2 {[%clk 0:02:54]}  h5 {[%clk 0:02:32]} 12. h3 {[%clk 0:02:40]}  Qe7 {[%clk 0:02:17]} 13. g4 {[%clk 0:02:39]}  Ne4 {[%clk 0:01:59]} 14. gxf5 {[%clk 0:02:23]}  Nxf2 {[%clk 0:02:00]} 15. Kxf2 {[%clk 0:02:23]}  Qh4+ {[%clk 0:02:00]} 16. Kg2 {[%clk 0:02:23]}  exf5 {[%clk 0:01:50]} 17. dxc5 {[%clk 0:02:21]}  Bxe5 {[%clk 0:01:47]} 18. fxe5 {[%clk 0:02:21]}  f4 {[%clk 0:01:45]} 19. exf4 {[%clk 0:02:17]}  Qxf4 {[%clk 0:01:46]} 20. Nf3 {[%clk 0:02:13]}  Be6 {[%clk 0:01:12]} 21. Qc1 {[%clk 0:02:12]}  Qa4 {[%clk 0:01:04]} 22. Qg5 {[%clk 0:02:11]}  g6 {[%clk 0:00:49]} 23. Bxg6 {[%clk 0:02:10]}  fxg6 {[%clk 0:00:50]} 24. Qxg6+ {[%clk 0:02:09]}  Kh8 {[%clk 0:00:49]} 25. Qh6+ {[%clk 0:02:06]}  Kg8 {[%clk 0:00:49]} 26. Qxe6+ {[%clk 0:02:00]}  Kh8 {[%clk 0:00:49]} 27. Qh6+ {[%clk 0:01:57]}  Kg8 {[%clk 0:00:41]} 28. Qg5+ {[%clk 0:01:56]}  Kh8 {[%clk 0:00:38]} 29. Qxh5+ {[%clk 0:01:55]}  Kg8 {[%clk 0:00:39]} 30. Qg6+ {[%clk 0:01:52]}  Kh8 {[%clk 0:00:35]} 31. Ng5 {[%clk 0:01:51]}  Rf2+ {[%clk 0:00:27]} 32. Kxf2 {[%clk 0:01:50]}  Qf4+ {[%clk 0:00:26]} 33. Nf3 {[%clk 0:01:48]} 1-0


[Site "https://www.chess.com"]

[Event "Titled Tuesday Blitz April 4 Late 2023"]
[White "Zampronha, Wladimir Camilo"]
[Black "Bitoon, Richard"]
[WhiteFideId "2103087"]
[BlackFideId "5201110"]
[WhiteElo "2176"]
[BlackElo "2374"]
[Result "0-1"]
[Round "03"]
[TimeControl "180+2"]
[Date "2023.04.04"]
[WhiteClock "0:00:05"]
[BlackClock "0:00:09"]

1. e4 {[%clk 0:03:00]}  c5 {[%clk 0:01:01]} 2. Nf3 {[%clk 0:03:01]}  d6 {[%clk 0:01:02]} 3. d4 {[%clk 0:03:01]}  cxd4 {[%clk 0:01:02]} 4. Nxd4 {[%clk 0:03:02]}  Nf6 {[%clk 0:01:03]} 5. Nc3 {[%clk 0:03:02]}  Nc6 {[%clk 0:01:03]} 6. Bg5 {[%clk 0:03:01]}  e6 {[%clk 0:01:03]} 7. Qd2 {[%clk 0:03:01]}  a6 {[%clk 0:01:04]} 8. O-O-O {[%clk 0:03:00]}  Bd7 {[%clk 0:01:04]} 9. f4 {[%clk 0:02:58]}  h6 {[%clk 0:01:04]} 10. Bxf6 {[%clk 0:02:43]}  Qxf6 {[%clk 0:01:05]} 11. Nf3 {[%clk 0:01:55]}  g5 {[%clk 0:00:53]} 12. e5 {[%clk 0:01:33]}  Qxf4 {[%clk 0:00:50]} 13. Qxf4 {[%clk 0:01:33]}  gxf4 {[%clk 0:00:49]} 14. exd6 {[%clk 0:01:14]}  O-O-O {[%clk 0:00:27]} 15. Bc4 {[%clk 0:01:01]}  Rg8 {[%clk 0:00:25]} 16. Rhg1 {[%clk 0:00:58]}  h5 {[%clk 0:00:25]} 17. g3 {[%clk 0:00:55]}  Bh6 {[%clk 0:00:18]} 18. Kb1 {[%clk 0:00:53]}  fxg3 {[%clk 0:00:18]} 19. Rxg3 {[%clk 0:00:54]}  Rxg3 {[%clk 0:00:17]} 20. hxg3 {[%clk 0:00:55]}  Rg8 {[%clk 0:00:17]} 21. Ne4 {[%clk 0:00:43]}  Bg7 {[%clk 0:00:13]} 22. Nc5 {[%clk 0:00:41]}  Bf8 {[%clk 0:00:09]} 23. Ne4 {[%clk 0:00:36]}  f5 {[%clk 0:00:07]} 24. Neg5 {[%clk 0:00:35]}  Rg6 {[%clk 0:00:07]} 25. Rh1 {[%clk 0:00:31]}  Rh6 {[%clk 0:00:06]} 26. Nf7 {[%clk 0:00:29]}  Rf6 {[%clk 0:00:06]} 27. N7e5 {[%clk 0:00:27]}  Nxe5 {[%clk 0:00:06]} 28. Nxe5 {[%clk 0:00:27]}  Bxd6 {[%clk 0:00:07]} 29. Nxd7 {[%clk 0:00:27]}  Kxd7 {[%clk 0:00:07]} 30. Rxh5 {[%clk 0:00:26]}  Bxg3 {[%clk 0:00:08]} 31. Rh7+ {[%clk 0:00:25]}  Kc6 {[%clk 0:00:09]} 32. Be2 {[%clk 0:00:23]}  e5 {[%clk 0:00:09]} 33. Bf3+ {[%clk 0:00:24]}  e4 {[%clk 0:00:09]} 34. Be2 {[%clk 0:00:24]}  f4 {[%clk 0:00:09]} 35. Rg7 {[%clk 0:00:22]}  f3 {[%clk 0:00:08]} 36. Bd1 {[%clk 0:00:14]}  Bf4 {[%clk 0:00:08]} 37. Re7 {[%clk 0:00:12]}  Kd5 {[%clk 0:00:05]} 38. Rd7+ {[%clk 0:00:07]}  Ke5 {[%clk 0:00:04]} 39. c3 {[%clk 0:00:06]}  f2 {[%clk 0:00:04]} 40. Be2 {[%clk 0:00:06]}  Rg6 {[%clk 0:00:05]} 41. Rxb7 {[%clk 0:00:06]}  Rg1+ {[%clk 0:00:04]} 42. Kc2 {[%clk 0:00:06]}  Rc1+ {[%clk 0:00:05]} 43. Kb3 {[%clk 0:00:06]}  Re1 {[%clk 0:00:06]} 44. Bxa6 {[%clk 0:00:05]}  f1=Q {[%clk 0:00:05]} 45. Bxf1 {[%clk 0:00:05]}  Rxf1 {[%clk 0:00:06]} 46. a4 {[%clk 0:00:05]}  e3 {[%clk 0:00:06]} 47. a5 {[%clk 0:00:05]}  Ke6 {[%clk 0:00:06]} 48. Rb4 {[%clk 0:00:03]}  Kf5 {[%clk 0:00:05]} 49. Rb7 {[%clk 0:00:02]}  e2 {[%clk 0:00:04]} 50. Re7 {[%clk 0:00:02]}  e1=Q {[%clk 0:00:04]} 51. Rxe1 {[%clk 0:00:02]}  Rxe1 {[%clk 0:00:05]} 52. Kc4 {[%clk 0:00:02]}  Ra1 {[%clk 0:00:05]} 53. b4 {[%clk 0:00:03]}  Ke6 {[%clk 0:00:06]} 54. Kb5 {[%clk 0:00:04]}  Kd7 {[%clk 0:00:06]} 55. Kb6 {[%clk 0:00:04]}  Be3+ {[%clk 0:00:06]} 56. Kb7 {[%clk 0:00:05]}  Ra3 {[%clk 0:00:06]} 57. c4 {[%clk 0:00:05]}  Ra4 {[%clk 0:00:07]} 58. b5 {[%clk 0:00:03]}  Rxa5 {[%clk 0:00:07]} 59. b6 {[%clk 0:00:01]}  Ra4 {[%clk 0:00:07]} 60. c5 {[%clk 0:00:02]}  Bxc5 {[%clk 0:00:07]} 61. Kb8 {[%clk 0:00:03]}  Bxb6 {[%clk 0:00:07]} 62. Kb7 {[%clk 0:00:03]}  Rb4 {[%clk 0:00:07]} 63. Kb8 {[%clk 0:00:04]}  Kc6 {[%clk 0:00:08]} 64. Ka8 {[%clk 0:00:05]}  Rd4 {[%clk 0:00:08]} 65. Kb8 {[%clk 0:00:05]}  Rd8# {[%clk 0:00:09]} 0-1


[Site "https://www.chess.com"]

[Event "Titled Tuesday Blitz April 4 Late 2023"]
[White "Fajdetic, Hrvoje"]
[Black "Manzone, Alessandro"]
[WhiteFideId "14501945"]
[BlackFideId "112488"]
[WhiteElo "2185"]
[BlackElo "2255"]
[Result "0-1"]
[Round "03"]
[TimeControl "180+2"]
[Date "2023.04.04"]
[WhiteClock "0:00:04"]
[BlackClock "0:01:33"]

1. d4 {[%clk 0:02:57]}  Nf6 {[%clk 0:03:00]} 2. Bf4 {[%clk 0:02:56]}  e6 {[%clk 0:03:00]} 3. e3 {[%clk 0:02:57]}  d5 {[%clk 0:02:59]} 4. Nf3 {[%clk 0:02:57]}  Bd6 {[%clk 0:03:00]} 5. Bg3 {[%clk 0:02:57]}  c5 {[%clk 0:02:58]} 6. c3 {[%clk 0:02:56]}  Nc6 {[%clk 0:02:58]} 7. Bd3 {[%clk 0:02:55]}  O-O {[%clk 0:02:56]} 8. Nbd2 {[%clk 0:02:55]}  b6 {[%clk 0:02:55]} 9. Ne5 {[%clk 0:02:50]}  Bb7 {[%clk 0:02:54]} 10. f4 {[%clk 0:02:49]}  Ne7 {[%clk 0:02:50]} 11. Bh4 {[%clk 0:02:48]}  Nf5 {[%clk 0:02:42]} 12. Bxf5 {[%clk 0:02:42]}  exf5 {[%clk 0:02:42]} 13. Qc2 {[%clk 0:02:23]}  g6 {[%clk 0:02:35]} 14. g4 {[%clk 0:02:03]}  fxg4 {[%clk 0:02:29]} 15. h3 {[%clk 0:01:35]}  g3 {[%clk 0:02:20]} 16. Ndf3 {[%clk 0:01:31]}  Be7 {[%clk 0:02:18]} 17. Bxf6 {[%clk 0:01:19]}  Bxf6 {[%clk 0:02:18]} 18. O-O-O {[%clk 0:01:14]}  Bc8 {[%clk 0:02:08]} 19. h4 {[%clk 0:01:13]}  Bf5 {[%clk 0:02:07]} 20. Qg2 {[%clk 0:01:11]}  cxd4 {[%clk 0:02:02]} 21. exd4 {[%clk 0:01:11]}  h5 {[%clk 0:01:53]} 22. Qxg3 {[%clk 0:01:11]}  Rc8 {[%clk 0:01:53]} 23. Ng5 {[%clk 0:00:55]}  b5 {[%clk 0:01:48]} 24. a3 {[%clk 0:00:33]}  a5 {[%clk 0:01:47]} 25. Kd2 {[%clk 0:00:33]}  b4 {[%clk 0:01:46]} 26. axb4 {[%clk 0:00:28]}  axb4 {[%clk 0:01:47]} 27. Ra1 {[%clk 0:00:28]}  Qb6 {[%clk 0:01:38]} 28. Ngxf7 {[%clk 0:00:07]}  Rxf7 {[%clk 0:01:36]} 29. Nxf7 {[%clk 0:00:04]}  bxc3+ {[%clk 0:01:34]} 30. bxc3 {[%clk 0:00:03]}  Qb2+ {[%clk 0:01:33]} 31. Ke3 {[%clk 0:00:04]} 0-1


[Site "https://www.chess.com"]

[Event "Titled Tuesday Blitz April 4 Late 2023"]
[White "Annaberdiyev, Meylis"]
[Black "Fernandez Sanchez, Mario Andres"]
[WhiteFideId "14000563"]
[BlackFideId "6501621"]
[WhiteElo "2416"]
[BlackElo "2050"]
[Result "1/2-1/2"]
[Round "03"]
[TimeControl "180+2"]
[Date "2023.04.04"]
[WhiteClock "0:00:07"]
[BlackClock "0:00:57"]

1. e4 {[%clk 0:03:00]}  c5 {[%clk 0:02:59]} 2. Nc3 {[%clk 0:03:00]}  Nc6 {[%clk 0:03:00]} 3. Bb5 {[%clk 0:02:58]}  Nd4 {[%clk 0:03:00]} 4. Nf3 {[%clk 0:02:58]}  Nxb5 {[%clk 0:03:00]} 5. Nxb5 {[%clk 0:02:59]}  d5 {[%clk 0:02:59]} 6. exd5 {[%clk 0:02:57]}  a6 {[%clk 0:03:00]} 7. Nc3 {[%clk 0:02:57]}  Nf6 {[%clk 0:03:00]} 8. d4 {[%clk 0:02:55]}  c4 {[%clk 0:03:00]} 9. Ne5 {[%clk 0:02:50]}  b5 {[%clk 0:02:53]} 10. O-O {[%clk 0:02:42]}  Bb7 {[%clk 0:02:49]} 11. a4 {[%clk 0:02:10]}  b4 {[%clk 0:02:33]} 12. Ne2 {[%clk 0:02:08]}  Rc8 {[%clk 0:02:33]} 13. Nf4 {[%clk 0:02:05]}  Nxd5 {[%clk 0:02:25]} 14. Qf3 {[%clk 0:01:47]}  Qd6 {[%clk 0:02:25]} 15. Nxf7 {[%clk 0:01:32]}  Kxf7 {[%clk 0:02:15]} 16. Nxd5+ {[%clk 0:01:32]}  Kg8 {[%clk 0:02:16]} 17. Nf6+ {[%clk 0:01:32]}  exf6 {[%clk 0:02:06]} 18. Qxb7 {[%clk 0:01:33]}  Qc6 {[%clk 0:02:07]} 19. Qxc6 {[%clk 0:01:13]}  Rxc6 {[%clk 0:02:08]} 20. Re1 {[%clk 0:01:08]}  Kf7 {[%clk 0:02:00]} 21. Bf4 {[%clk 0:01:05]}  c3 {[%clk 0:02:00]} 22. b3 {[%clk 0:01:00]}  g5 {[%clk 0:01:52]} 23. Bg3 {[%clk 0:00:59]}  h5 {[%clk 0:01:42]} 24. h4 {[%clk 0:00:55]}  gxh4 {[%clk 0:01:36]} 25. Bxh4 {[%clk 0:00:55]}  Bh6 {[%clk 0:01:36]} 26. Re4 {[%clk 0:00:43]}  Rd8 {[%clk 0:01:36]} 27. Rae1 {[%clk 0:00:37]}  Rcd6 {[%clk 0:01:30]} 28. Rd1 {[%clk 0:00:11]}  Bd2 {[%clk 0:01:28]} 29. Kf1 {[%clk 0:00:11]}  Rxd4 {[%clk 0:01:28]} 30. Rxd4 {[%clk 0:00:12]}  Rxd4 {[%clk 0:01:29]} 31. Bg3 {[%clk 0:00:12]}  Re4 {[%clk 0:01:24]} 32. f3 {[%clk 0:00:11]}  Re6 {[%clk 0:01:20]} 33. Be1 {[%clk 0:00:11]}  Bxe1 {[%clk 0:01:12]} 34. Rxe1 {[%clk 0:00:11]}  Rxe1+ {[%clk 0:01:12]} 35. Kxe1 {[%clk 0:00:12]}  Ke6 {[%clk 0:01:10]} 36. Ke2 {[%clk 0:00:12]}  Ke5 {[%clk 0:01:08]} 37. g3 {[%clk 0:00:12]}  f5 {[%clk 0:01:01]} 38. Kf2 {[%clk 0:00:07]}  Kd4 {[%clk 0:00:58]} 39. Ke2 {[%clk 0:00:07]}  Ke5 {[%clk 0:00:57]} 40. Kf2 {[%clk 0:00:07]}  Kd4 {[%clk 0:00:57]} 41. Ke2 {[%clk 0:00:07]}  Ke5 {[%clk 0:00:57]} 1/2-1/2


[Site "https://www.chess.com"]

[Event "Titled Tuesday Blitz April 4 Late 2023"]
[White "Osmonbekov, Talaibek"]
[Black "LuckyMajky"]
[WhiteFideId "2017253"]
[WhiteElo "2135"]
[BlackElo "2466"]
[Result "0-1"]
[Round "03"]
[TimeControl "180+2"]
[Date "2023.04.04"]
[WhiteClock "0:00:01"]
[BlackClock "0:01:10"]

1. d4 {[%clk 0:03:00]}  Nf6 {[%clk 0:02:59]} 2. Bf4 {[%clk 0:03:01]}  c5 {[%clk 0:02:59]} 3. e3 {[%clk 0:02:59]}  cxd4 {[%clk 0:02:58]} 4. exd4 {[%clk 0:02:58]}  Qb6 {[%clk 0:02:58]} 5. b3 {[%clk 0:02:57]}  Nc6 {[%clk 0:02:54]} 6. Nf3 {[%clk 0:02:57]}  d5 {[%clk 0:02:53]} 7. Be2 {[%clk 0:02:55]}  Bg4 {[%clk 0:02:53]} 8. c3 {[%clk 0:02:54]}  e6 {[%clk 0:02:53]} 9. O-O {[%clk 0:02:54]}  Be7 {[%clk 0:02:52]} 10. b4 {[%clk 0:02:36]}  O-O {[%clk 0:02:46]} 11. a4 {[%clk 0:02:36]}  Rac8 {[%clk 0:02:43]} 12. a5 {[%clk 0:02:34]}  Qd8 {[%clk 0:02:42]} 13. Re1 {[%clk 0:02:21]}  a6 {[%clk 0:02:40]} 14. Ra2 {[%clk 0:02:20]}  Na7 {[%clk 0:02:40]} 15. Ne5 {[%clk 0:02:14]}  Bxe2 {[%clk 0:02:39]} 16. Raxe2 {[%clk 0:02:15]}  Nb5 {[%clk 0:02:38]} 17. Re3 {[%clk 0:02:07]}  Ne4 {[%clk 0:02:36]} 18. Rh3 {[%clk 0:02:01]}  g6 {[%clk 0:02:28]} 19. c4 {[%clk 0:01:54]}  Nbd6 {[%clk 0:02:11]} 20. c5 {[%clk 0:01:48]}  Nb5 {[%clk 0:02:08]} 21. Qg4 {[%clk 0:01:09]}  Nxd4 {[%clk 0:01:45]} 22. Nd2 {[%clk 0:00:28]}  f5 {[%clk 0:01:35]} 23. Qd1 {[%clk 0:00:21]}  Nc6 {[%clk 0:01:27]} 24. Qb3 {[%clk 0:00:13]}  Bf6 {[%clk 0:01:16]} 25. Nxe4 {[%clk 0:00:05]}  fxe4 {[%clk 0:01:16]} 26. Ng4 {[%clk 0:00:03]}  Bg7 {[%clk 0:01:12]} 27. Nh6+ {[%clk 0:00:01]}  Bxh6 {[%clk 0:01:10]} 0-1


[Site "https://www.chess.com"]

[Event "Titled Tuesday Blitz April 4 Late 2023"]
[White "Vaglio Munoz, Jaime"]
[Black "Torres Hernandez, Leslie Carolin"]
[WhiteFideId "6500145"]
[BlackFideId "8400504"]
[WhiteElo "2199"]
[BlackElo "1920"]
[Result "0-1"]
[Round "03"]
[TimeControl "180+2"]
[Date "2023.04.04"]
[WhiteClock "0:01:09"]
[BlackClock "0:01:00"]

1. Nf3 {[%clk 0:03:00]}  Nf6 {[%clk 0:02:56]} 2. c4 {[%clk 0:03:00]}  Nc6 {[%clk 0:02:54]} 3. b3 {[%clk 0:02:59]}  e5 {[%clk 0:02:53]} 4. Bb2 {[%clk 0:02:59]}  d6 {[%clk 0:02:52]} 5. g3 {[%clk 0:02:57]}  Be7 {[%clk 0:02:51]} 6. Bg2 {[%clk 0:02:56]}  O-O {[%clk 0:02:51]} 7. O-O {[%clk 0:02:56]}  a5 {[%clk 0:02:45]} 8. Nc3 {[%clk 0:02:54]}  h6 {[%clk 0:02:42]} 9. d4 {[%clk 0:02:53]}  exd4 {[%clk 0:02:38]} 10. Nxd4 {[%clk 0:02:52]}  Nxd4 {[%clk 0:02:38]} 11. Qxd4 {[%clk 0:02:53]}  c6 {[%clk 0:02:35]} 12. Rad1 {[%clk 0:02:52]}  Qc7 {[%clk 0:02:32]} 13. e4 {[%clk 0:02:51]}  Be6 {[%clk 0:02:31]} 14. h3 {[%clk 0:02:50]}  Nd7 {[%clk 0:02:30]} 15. Na4 {[%clk 0:02:47]}  Bf6 {[%clk 0:02:11]} 16. Qd2 {[%clk 0:02:43]}  Bxb2 {[%clk 0:02:09]} 17. Nxb2 {[%clk 0:02:40]}  a4 {[%clk 0:02:07]} 18. Qxd6 {[%clk 0:02:32]}  Qxd6 {[%clk 0:02:05]} 19. Rxd6 {[%clk 0:02:33]}  axb3 {[%clk 0:02:05]} 20. axb3 {[%clk 0:02:32]}  Ra2 {[%clk 0:02:06]} 21. Nd3 {[%clk 0:02:30]}  Rd2 {[%clk 0:02:04]} 22. Kh1 {[%clk 0:02:25]}  Nc5 {[%clk 0:01:58]} 23. Nxc5 {[%clk 0:02:13]}  Rxd6 {[%clk 0:01:58]} 24. Nxb7 {[%clk 0:02:13]}  Rd2 {[%clk 0:01:56]} 25. e5 {[%clk 0:02:13]}  Rb8 {[%clk 0:01:42]} 26. Nc5 {[%clk 0:02:10]}  Bf5 {[%clk 0:01:36]} 27. g4 {[%clk 0:02:03]}  Bc2 {[%clk 0:01:35]} 28. e6 {[%clk 0:01:47]}  fxe6 {[%clk 0:01:30]} 29. Re1 {[%clk 0:01:40]}  Bxb3 {[%clk 0:01:24]} 30. Nxe6 {[%clk 0:01:36]}  Bxc4 {[%clk 0:01:21]} 31. Nf4 {[%clk 0:01:34]}  Rxf2 {[%clk 0:01:20]} 32. Bxc6 {[%clk 0:01:30]}  Rxf4 {[%clk 0:01:19]} 33. Rc1 {[%clk 0:01:28]}  Rf1+ {[%clk 0:01:14]} 34. Rxf1 {[%clk 0:01:26]}  Bxf1 {[%clk 0:01:11]} 35. Kh2 {[%clk 0:01:24]}  Bc4 {[%clk 0:01:10]} 36. Kg3 {[%clk 0:01:23]}  Rb3+ {[%clk 0:01:10]} 37. Kh4 {[%clk 0:01:23]}  g5+ {[%clk 0:01:06]} 38. Kh5 {[%clk 0:01:22]}  Kg7 {[%clk 0:01:06]} 39. h4 {[%clk 0:01:09]}  Bf7# {[%clk 0:01:00]} 0-1


[Site "https://www.chess.com"]

[Event "Titled Tuesday Blitz April 4 Late 2023"]
[White "Mazurkiewicz, Michal"]
[Black "ritanovikova"]
[WhiteFideId "1124943"]
[WhiteElo "2054"]
[BlackElo "2214"]
[Result "1-0"]
[Round "03"]
[TimeControl "180+2"]
[Date "2023.04.04"]
[WhiteClock "0:00:32"]
[BlackClock "0:00:22"]

1. e4 {[%clk 0:03:00]}  d5 {[%clk 0:02:59]} 2. exd5 {[%clk 0:02:57]}  Qxd5 {[%clk 0:03:00]} 3. d3 {[%clk 0:02:57]}  Nf6 {[%clk 0:02:59]} 4. Nc3 {[%clk 0:02:57]}  Qd8 {[%clk 0:02:58]} 5. g3 {[%clk 0:02:57]}  Nc6 {[%clk 0:02:57]} 6. Nf3 {[%clk 0:02:57]}  Bg4 {[%clk 0:02:56]} 7. h3 {[%clk 0:02:57]}  Bh5 {[%clk 0:02:56]} 8. Bg2 {[%clk 0:02:57]}  e6 {[%clk 0:02:55]} 9. O-O {[%clk 0:02:57]}  Be7 {[%clk 0:02:54]} 10. Re1 {[%clk 0:02:57]}  O-O {[%clk 0:02:54]} 11. g4 {[%clk 0:02:44]}  Bg6 {[%clk 0:02:54]} 12. Nh4 {[%clk 0:02:37]}  Nd5 {[%clk 0:02:48]} 13. Nxg6 {[%clk 0:02:35]}  hxg6 {[%clk 0:02:48]} 14. Nxd5 {[%clk 0:02:28]}  exd5 {[%clk 0:02:48]} 15. d4 {[%clk 0:02:28]}  Bf6 {[%clk 0:02:34]} 16. c3 {[%clk 0:02:28]}  Qd6 {[%clk 0:02:29]} 17. Qf3 {[%clk 0:02:20]}  Rad8 {[%clk 0:02:24]} 18. Bf4 {[%clk 0:02:15]}  Qd7 {[%clk 0:02:22]} 19. Qg3 {[%clk 0:02:11]}  Rc8 {[%clk 0:02:16]} 20. h4 {[%clk 0:01:57]}  Be7 {[%clk 0:02:09]} 21. g5 {[%clk 0:01:51]}  Qd8 {[%clk 0:01:56]} 22. Bh3 {[%clk 0:01:47]}  Ra8 {[%clk 0:01:39]} 23. Bxc7 {[%clk 0:01:39]}  Qe8 {[%clk 0:01:36]} 24. Re2 {[%clk 0:01:31]}  f5 {[%clk 0:01:36]} 25. gxf6 {[%clk 0:01:25]}  Rxf6 {[%clk 0:01:16]} 26. Rae1 {[%clk 0:01:24]}  Qf8 {[%clk 0:01:14]} 27. Be6+ {[%clk 0:00:45]}  Kh7 {[%clk 0:01:13]} 28. Bxd5 {[%clk 0:00:45]}  Bd6 {[%clk 0:00:35]} 29. Bxd6 {[%clk 0:00:43]}  Rxd6 {[%clk 0:00:35]} 30. Be4 {[%clk 0:00:39]}  Kh8 {[%clk 0:00:31]} 31. Bxg6 {[%clk 0:00:39]}  Ne7 {[%clk 0:00:28]} 32. Rxe7 {[%clk 0:00:33]}  Rf6 {[%clk 0:00:26]} 33. Re8 {[%clk 0:00:33]}  Rxg6 {[%clk 0:00:22]} 34. Rxf8+ {[%clk 0:00:32]} 1-0


[Site "https://www.chess.com"]

[Event "Titled Tuesday Blitz April 4 Late 2023"]
[White "Araujo, Everson De Moura"]
[Black "Jovic, Stanoje"]
[WhiteFideId "22737197"]
[BlackFideId "905020"]
[WhiteElo "2035"]
[BlackElo "2236"]
[Result "0-1"]
[Round "03"]
[TimeControl "180+2"]
[Date "2023.04.04"]
[WhiteClock "0:00:01"]
[BlackClock "0:01:39"]

1. d4 {[%clk 0:03:00]}  Nf6 {[%clk 0:02:57]} 2. Nc3 {[%clk 0:03:01]}  d5 {[%clk 0:02:56]} 3. Bf4 {[%clk 0:03:02]}  e6 {[%clk 0:02:55]} 4. Nb5 {[%clk 0:03:02]}  Na6 {[%clk 0:02:54]} 5. e3 {[%clk 0:03:02]}  c6 {[%clk 0:02:50]} 6. Nc3 {[%clk 0:03:03]}  Bb4 {[%clk 0:02:49]} 7. Qd3 {[%clk 0:02:56]}  Ne4 {[%clk 0:02:43]} 8. f3 {[%clk 0:02:29]}  Nxc3 {[%clk 0:02:41]} 9. bxc3 {[%clk 0:02:30]}  Bd6 {[%clk 0:02:40]} 10. Ne2 {[%clk 0:02:29]}  b5 {[%clk 0:02:34]} 11. h4 {[%clk 0:02:23]}  O-O {[%clk 0:02:31]} 12. g4 {[%clk 0:02:20]}  f6 {[%clk 0:02:28]} 13. g5 {[%clk 0:01:38]}  e5 {[%clk 0:02:27]} 14. dxe5 {[%clk 0:01:23]}  fxe5 {[%clk 0:02:25]} 15. g6 {[%clk 0:00:34]}  exf4 {[%clk 0:02:19]} 16. gxh7+ {[%clk 0:00:33]}  Kh8 {[%clk 0:02:19]} 17. h5 {[%clk 0:00:32]}  Bf5 {[%clk 0:02:10]} 18. e4 {[%clk 0:00:19]}  dxe4 {[%clk 0:02:03]} 19. fxe4 {[%clk 0:00:20]}  Nc5 {[%clk 0:02:03]} 20. Qd4 {[%clk 0:00:18]}  Ne6 {[%clk 0:01:56]} 21. Qf2 {[%clk 0:00:10]}  Bxe4 {[%clk 0:01:53]} 22. Rg1 {[%clk 0:00:09]}  Qf6 {[%clk 0:01:47]} 23. Bg2 {[%clk 0:00:04]}  f3 {[%clk 0:01:44]} 24. Bxf3 {[%clk 0:00:02]}  Bxf3 {[%clk 0:01:39]} 25. h6 {[%clk 0:00:01]} 0-1


[Site "https://www.chess.com"]